Cogmind - Beta 12 @@@ ROGUE MODE // 2023.08.13 @ 12:59:09 Player: Zirov Result: Destroyed by D-53 Grenadier with Mini Grenade Launcher Performance ------------- Evolutions (0) 0 Regions Visited (2) 400 Robots Destroyed (19) 95 Value Destroyed (472) 472 Prototype IDs (3) 60 Alien Tech Used (0) 0 Bonus (0) 0 TOTAL SCORE: 1027 Bonus ------- None Cogmind --------- Core Integrity 0/250 Matter 300/300 Energy 150/150 System Corruption 1% Temperature Cool (0) Movement Walking (120) Location -10/Mines Parts ------- > --- POWER (1) -------- Light Angular Momentum Engine > --- PROPULSION (2) --- Aluminum Leg Carbon-fiber Leg > --- UTILITY (2) ------ Medium Storage Unit Signal Interpreter > --- WEAPON (2) ------- Makeshift Axe > --- INVENTORY (10) --- Advanced Treads Aluminum Leg Titanium Leg Cryofiber Web Large Storage Unit Sensor Array System Shield Small Laser Light Assault Rifle Mini Grenade Launcher Peak State ------------ > --- POWER ------------ Light Angular Momentum Engine > --- PROPULSION ------- Aluminum Leg Carbon-fiber Leg > --- UTILITY ---------- Medium Storage Unit Signal Interpreter > --- WEAPON ----------- Light Assault Rifle Makeshift Axe > --- INVENTORY -------- Advanced Treads Aluminum Leg Titanium Leg Cryofiber Web Large Storage Unit Sensor Array System Shield Small Laser Light Assault Rifle Mini Grenade Launcher [Rating: 17] Favorites ----------- Power Ion Engine Engine Ion Engine Propulsion Aluminum Leg Leg Aluminum Leg Utility Signal Interpreter Device Sensor Array Storage Medium Storage Unit Processor Signal Interpreter Protection Propulsion Shielding Weapon Light Assault Rifle Energy Gun Medium Laser Ballistic Gun Light Assault Rifle Launcher Mini Grenade Launcher Slashing Weapon Makeshift Axe Build | -11 -10 -10 ------- Run | Jun Mat Min Slots Evolved . | . . . Power . | . . . Propulsion . | . . . Utility . | . . . Weapon . | . . . Parts Attached 21 | 5 9 7 Power 4 | 1 1 2 Engine 4 | 1 1 2 Core . | . . . Reactor . | . . . Propulsion 8 | 2 3 3 Treads . | . . . Leg 8 | 2 3 3 Wheel . | . . . Hover . | . . . Flight . | . . . Utility 4 | . 4 . Device 1 | . 1 . Storage 1 | . 1 . Processor 1 | . 1 . Hackware . | . . . Protection 1 | . 1 . Artifact . | . . . Weapon 5 | 2 1 2 Energy Gun 2 | 2 . . Energy Cannon . | . . . Ballistic Gun 1 | . 1 . Ballistic Cannon . | . . . Launcher 1 | . . 1 Special Weapon . | . . . Impact Weapon . | . . . Slashing Weapon 1 | . . 1 Piercing Weapon . | . . . Special Melee Weapon . | . . . Unidentified Prototypes . | . . . Parts Lost 2 | . . 2 Power 1 | . . 1 Propulsion . | . . . Utility . | . . . Weapon 1 | . . 1 Highest Loss Streak 1 | . . 1 To Critical Strikes . | . . . Average Slot Usage (%) 96 | . 92 99 Engine 13 | . 14 13 Leg 28 | . 28 28 Storage 7 | . . 14 Processor 11 | . 8 14 Protection 6 | . 12 . Energy Gun 11 | . 22 . Ballistic Gun 9 | . 5 14 Slashing Weapon 6 | . . 12 Naked Turns . | . . . Heaviest Build 23 | 6 18 23 Greatest Support 25 | 20 20 25 Greatest Overweight (x) 1 | . . 1 Average Overweight (x) . | . . . Largest Inventory Capacity 10 | 5 10 10 Average Capacity 7 | 5 5 10 Most Carried 10 | 2 6 10 Average Carried 6 | 1 4 9 Final Capacity 10 | 5 10 10 Final Carried 10 | 2 6 10 Class Distribution -------------------- 62% | Mutant 37% | Scavenger-Mutant Dominant Class ---------------- Mutant | -10/Materials Scavenger-Mutant | -10/Mines Resources | -11 -10 -10 ----------- Run | Jun Mat Min Matter Collected 454 | 250 92 112 Remotely . | . . . Salvage Created 531 | . 345 186 Parts 32 | . 18 14 Haulers Intercepted . | . . . Recyclers Shooed 1 | . 1 . Parts Field Recycled . | . . . Retrieved Matter . | . . . Parts Self-Destructed . | . . . Prevented . | . . . Kills | -11 -10 -10 ------- Run | Jun Mat Min Combat Hostiles Destroyed 16 | . 9 7 Melee 4 | . . 4 Guns 10 | . 9 1 AOE 2 | . . 2 Classes Destroyed 4 | . 4 . Worker 1 | . 1 . Watcher 2 | . 2 . Swarmer 6 | . 3 3 Grunt 10 | . 6 4 Best Kill Streak 3 | . 3 3 Combat Bots Only 3 | . 3 3 Max Kills in Single Turn 2 | . 2 2 Gunslinging 1 | . 1 . Exploded 2 | . . 2 Melee 1 | . . 1 Uniques/NPCs Destroyed . | . . . Combat | -11 -10 -10 -------- Run | Jun Mat Min Damage Taken 923 | . 419 504 Core 271 | . 91 180 Absorbed by Shields . | . . . Redirected to Shielding 45 | . 45 . Core Remaining (%) 100 | 100 . . Volleys Fired 49 | . 42 7 Largest 2 | . 2 1 Hottest 90 | . 90 30 Shots Fired 89 | . 82 7 Gun 88 | . 82 6 Cannon . | . . . Launcher 1 | . . 1 Special . | . . . Kinetic 18 | . 12 6 Thermal 70 | . 70 . Explosive 1 | . . 1 Electromagnetic . | . . . Robot Hit Streak 6 | . 6 2 Robot Miss Streak 3 | . 3 2 Penetration Max . | . . . Secondary Targets 2 | . 2 . Max Gunslinging Chain 1 | . 1 . Shots Hit Robots 63 | . 51 12 Core Hits 27 | . 20 7 Critical Kills . | . . . Critical Parts Destroyed . | . . . Critical Strikes 7 | . 5 2 Burn 5 | . 5 . Sever 2 | . . 2 Melee Attacks 15 | . . 15 Impact . | . . . Slashing 15 | . . 15 Piercing . | . . . Sneak Attacks 1 | . . 1 Combat Hostiles . | . . . Follow-up Attacks . | . . . Damage Inflicted 1179 | . 632 547 Guns 656 | . 632 24 Cannons . | . . . Explosions 181 | . . 181 Melee 342 | . . 342 Ramming . | . . . Kinetic 74 | . 50 24 Thermal 582 | . 582 . Explosive 181 | . . 181 Electromagnetic . | . . . Impact . | . . . Slashing 342 | . . 342 Piercing . | . . . Highest Corruption 1 | . 1 1 Average Corruption 1 | . 1 1 Corruption Purged . | . . . Corruption Blocked . | . . . Effects 9 | . 3 6 Message Errors 4 | . 1 3 Matter Fused 2 | . 1 1 Heat Flow Errors 1 | . . 1 Energy Discharges 1 | . . 1 Data Loss (minor) 1 | . 1 . Overload Shots . | . . . Overflow Damage 92 | . . 92 Projectiles . | . . . Explosions 41 | . . 41 Melee 51 | . . 51 Knockbacks . | . . . Impact . | . . . Kinetic . | . . . Secondary . | . . . Self-Inflicted Damage 4 | . . 4 Shots 1 | . . 1 Rammed . | . . . Targets Rammed . | . . . Kicked . | . . . Crushed . | . . . Highest Temperature 279 | . 279 112 Average Temperature 101 | . 102 62 Received Heat Transfer 252 | . 189 63 Siege Activations . | . . . Robots Corrupted . | . . . Combat Hostiles . | . . . Parts Fried . | . . . Impact Corruptions . | . . . Robots Melted . | . . . Combat Hostiles . | . . . Parts Melted 3 | . 3 . Heat Transferred 1931 | . 1931 . Parts Sabotaged . | . . . Parts Stolen . | . . . Parts Stripped . | . . . Power Chain Reactions . | . . . Missiles Intercepted . | . . . Alert | -11 -10 -10 ------- Run | Jun Mat Min Peak Influence 234 | . 188 234 Initial 37 | . . 37 Average 99 | . 101 105 Maximum Alert Level 1 | . 1 1 Low Security (%) 96 | 100 99 92 Level 1 3 | . . 7 Level 2 . | . . . Level 3 . | . . . Level 4 . | . . . Level 5 . | . . . High Security . | . . . Max Security . | . . . Squads Dispatched 1 | . 1 . Investigation . | . . . Extermination . | . . . Reinforcement 1 | . 1 . Assault . | . . . Garrison . | . . . Intercept . | . . . Searches Triggered . | . . . Construction Impeded . | . . . Haulers Reinforced . | . . . Active Scanning Responses . | . . . Cargo Convoy Interrupts . | . . . Stealth | -11 -10 -10 --------- Run | Jun Mat Min Distress Signals 2 | . 2 . Communications Jammed . | . . . Distress Signals . | . . . Times Spotted 29 | . 15 14 Peak Tracking Total 9 | . 3 9 Tactical Retreats 1 | . . 1 Traps | -11 -10 -10 ------- Run | Jun Mat Min Traps Triggered 1 | . 1 . Indirectly . | . . . Trap Hack Attempts . | . . . Triggered . | . . . Disarmed . | . . . Reprogrammed . | . . . Reused . | . . . Traps Extracted . | . . . Installed . | . . . Triggered . | . . . Machines | -11 -10 -10 ---------- Run | Jun Mat Min Machines Disabled 1 | . . 1 Max in Single Turn 1 | . . 1 Machines Repaired . | . . . Machines Sabotaged . | . . . Overloaded Fab Kills . | . . . Hacking | -11 -10 -10 --------- Run | Jun Mat Min Machines Accessed 4 | . 4 . Terminals 4 | . 4 . Fabricators . | . . . Repair Stations . | . . . Recycling Units . | . . . Scanalyzers . | . . . Garrison Access . | . . . Total Hacks 12 | . 12 . Successful 5 | . 5 . Failed 7 | . 7 . Catastrophic 1 | . 1 . Database Lockouts . | . . . Manual 4 | . 4 . Terminals 12 | . 12 . Fabricators . | . . . Repair Stations . | . . . Recycling Units . | . . . Scanalyzers . | . . . Garrison Access . | . . . Terminal Hacks 5 | . 5 . Robot Analysis 1 | . 1 . Prototype ID Bank 2 | . 2 . Fabricator Index 1 | . 1 . Zone Layout 1 | . 1 . Fabricator Hacks . | . . . Repair Station Hacks . | . . . Recycling Unit Hacks . | . . . Scanalyzer . | . . . Garrison Access Hacks . | . . . Unauthorized Hacks . | . . . Terminals . | . . . Fabricators . | . . . Repair Stations . | . . . Recycling Units . | . . . Scanalyzers . | . . . Garrison Access . | . . . Data Cores Recovered . | . . . Used . | . . . Hacking Detections 4 | . 4 . Full Trace Events 1 | . 1 . Feedback Events . | . . . Feedback Blocked . | . . . Robot Schematics Acquired . | . . . Robots Built . | . . . Authchips . | . . . Time . | . . . Total Robot Build Rating . | . . . Part Schematics Acquired . | . . . Parts Built . | . . . Authchips . | . . . Time . | . . . Total Part Build Rating . | . . . Parts Repaired . | . . . Time . | . . . Parts Recycled . | . . . Recycled Matter . | . . . Retrieved Matter . | . . . Retrieved Components . | . . . Parts Scanalyzed . | . . . Part Schematics Acquired . | . . . Parts Damaged . | . . . Bothacking | -11 -10 -10 ------------ Run | Jun Mat Min Used RIF Installer . | . . . Robots Hacked . | . . . Non-combat . | . . . Combat . | . . . Robot Hacks Applied . | . . . Relay Couplers Released . | . . . Fabnet Peak Effective % . | . . . Robots Rewired . | . . . Allies Hacked . | . . . Hacks Repelled . | . . . Allies | -11 -10 -10 -------- Run | Jun Mat Min Total Allies 3 | . . 3 Largest Group 3 | . . 3 Highest-Rated Group 40 | . . 40 Highest-Rated Ally 16 | . . 16 Total Orders . | . . . Ally Attacks 29 | . . 29 Total Damage 283 | . . 283 Kills 3 | . . 3 Allies Corrupted . | . . . Allies Melted . | . . . Intel | -11 -10 -10 ------- Run | Jun Mat Min Robot Analysis Total 1 | . 1 . Derelict Logs Recovered 1 | . . 1 Drone Launches . | . . . Drone Recoveries . | . . . Exploration | -11 -10 -10 ------------- Run | Jun Mat Min Turns Passed 1487 | 56 729 702 Spaces Moved 829 | 42 267 520 Core 4 | 4 . . Treads . | . . . Legs 825 | 38 267 520 Wheels . | . . . Hover . | . . . Flight . | . . . Fastest Speed 50 | 50 120 120 Average Speed 119 | 113 120 120 Slowest Speed 190 | 120 120 190 Overloaded Moves . | . . . Propulsion Burnouts . | . . . Robots Hopped . | . . . Cave-ins Triggered . | . . . Exploration Rate (%) 50 | 3 54 93 Regions Visited 2 Branch Regions 1 Pre-discovered Areas 1 | . . 1 Known Exits Taken 1 | . 1 . Unknown Exits Taken 1 | 1 . . Scrap Searched 2 | . . 2 Spaces Dug 3 | . . 3 Terrain Destroyed 15 | . . 15 Melee 3 | . . 3 Projectile . | . . . AOE 12 | . . 12 Terrain Rammed . | . . . Walls Destroyed . | . . . Machines Disabled . | . . . Actions | -11 -10 -10 --------- Run | Jun Mat Min Total 1223 | 48 597 578 Wait 282 | . 270 12 Move 827 | 41 266 520 Hop . | . . . Pick Up 15 | 2 4 9 Fast Attach 10 | 5 4 1 Attach 2 | . 2 . Detach 1 | . 1 . Swap 9 | . 3 6 Drop 13 | . 5 8 Fire 49 | . 42 7 Melee 15 | . . 15 Ram . | . . . Kick . | . . . Crush . | . . . Escape Stasis . | . . . Rewire . | . . . Trap . | . . . Miscellaneous . | . . . Route ------- -11/Junkyard -10/Materials (discovered 3 exits: *Mat / *Min x2) -10/Mines (discovered 2 exits: *Mat x2) History --------- Turn | Location | Event 11 | -11/Junkyard | Discovered new exit (range 15) 57 | -11/Junkyard | Entered Materials 125 | -10/Materials | Discovered new exit (range 12) 236 | -10/Materials | Discovered new exit (range 3) 239 | -10/Materials | Discovered new exit (range 15) 315 | -10/Materials | Build established: Mutant 332 | -10/Materials | Identified exit to Mines 348 | -10/Materials | Identified exit to Materials 786 | -10/Materials | Entered Mines 789 | -10/Mines | Met a Derelict who couldn't figure out how to use a Trap Extractor 797 | -10/Mines | Core integrity fell below 50% 805 | -10/Mines | Met a Derelict bent on vengeance 830 | -10/Mines | Discovered exit to Materials (range 8) 856 | -10/Mines | A weapon hastily lodged in a ceiling crevice suddenly fell to the ground 1079 | -10/Mines | Discovered exit to Materials (range 11) 1104 | -10/Mines | Assisted by bots powering up and referring to "LRC-V3" 1234 | -10/Mines | Build established: Scavenger-Mutant 1430 | -10/Mines | Assembled infested the area 1482 | -10/Mines | Core integrity fell below 20% 1488 | -10/Mines | Destroyed by D-53 Grenadier with Mini Grenade Launcher Last Messages --------------- 01170_ Dropped Ion Engine. 01171_ Acquired 20 matter. 01174_ K-01 Serf collects debris. 01175_ Dropped Aluminum Leg. 01176_ Acquired 10 matter. 01180_ K-01 Serf collects debris. 01221_ T-07 Excavator is excavating. 01239_ U-05 Engineer lays Concrete. 01282_ K-01 Serf collects debris. 01340_ System corrupted: Heat flow error (+128). 01384_ Sneak attack on R-06 Scavenger. 01384_ Destroyed Lgt. Ion Engine. 01384_ Destroyed Tractor Beam. 01430_ ALERT: Infestation in the mines, dispatching Demolisher response squad. 01458_ C-30 ARC bursts open, deploying its payload. 01458_ D-53 Grenadier unfolds itself. 01474_ K>QCL&7R3U3 R8Q6U8A8VPZ/KNTYZVELGH 01478_ The unstable cave ceiling collapses. 01487_ Lgt. Assault Rifle destroyed. Map ----- +----------------------------------------------------+ | ?????????????????# #??# | | ?????????????????# #??#### | | ????????????????## #???### | | ????????????????# #????## | | ????????????????# < ####### | | ????????????????#! ## | | ????????????????# ## #### | | ????????????????# ## #??? | | ?????????#####??## ### #??? | | ????????## ##??## #?# #??? | | ???????## ##### ### #??? | | ???????# %!! #??? | | ???????# ! #??? | | ??????## ############??? | | ??????# #######???????? | | ?????# #???????? | | ????# ##### #???????? | | ???# #???# #???????? | | ?### #### #???# #???????? | | ?# ????## #???# #???????? | | ?# ?????# #???# #???????? | | ?# #????# ##???# #???????? | | ## ####? #????# #???????? | | # ## #?????# #???????? | | # g##??????# #???????? | | # @ #???????# #???????? | | # ##??????# #???????? | | #??????#"#???????? | | ####???#%#???????? | | # #####"#???????? | | # ## #???????? | | # d ## #???????? | | ## d #???????# | | ?## ## ######### | | ??# ### | | ?# #?# | | ?# # ########?####### ### | | ?## ####??????????????# #?# | | ??# #?????????????????# #?? | | ??# ?????????????????# #?? | | ??## ?????????????????# #?? | | ???###?????????????????# #?? | | ???????????????????????# #?? | | ???????????????????????# #?? | | ??????????????????????## ##? | | ??????????############# ## | | ??????# | | ??????????############ | | ?????????????????????## | | ??????????????????????## | +----------------------------------------------------+ Best States ------------- Heat Dissipation 25 Energy Generation 18 Energy Capacity 250 Matter Stores 300 Matter Capacity 300 Sight Range 16 Terrain Scan Density 10 Propulsion Shielding 33 Evasion (%) 55 Item Schematics ----------------- None Robot Schematics ------------------ None Fabricated ------------ Nothing Alien Tech Used ----------------- None Achievements -------------- None Challenges ------------ None Game ------ Seed VariableSegregatorShifter Manual? 0 Play Time 00:17:17 Cumulative 80.6 hours Start 2023.08.13 @ 12:39:55 End 2023.08.13 @ 12:59:09 Sessions 1 Manual Loads 0 Difficulty Rogue Special Mode None Game No. 90 Rogue 90 Adventurer 0 Explorer 0 Win Type - Total 0 Types 0/0/0/0/0/0/0/0/0 Lore% 29 Gallery% 37 Achievement% 28 Wizard Run 0 Options --------- ASCII 1 Keyboard 1 Movement Numpad Keybinds 0 Fullscreen 1 Font 18/SmallcapsGlow Map View 76x50 Tactical HUD 1 Map Filters NONE Filters NONE Steam 1 RUN: a9577901-57f9-4cea-98eb-b2a48b716caa